[Event "EYCC Open-U18 2019"]
[Site "Bratislava"]
[Date "2019.08.10"]
[Round "9.21"]
[White "Golikov, Daniil"]
[Black "Tisaj, Domen"]
[Result "1-0"]
[ECO "A04"]
[WhiteElo "2257"]
[BlackElo "2232"]
[Annotator "NA"]
[PlyCount "53"]
[EventDate "2019.08.02"]
[EventType "swiss"]
[EventCountry "SVK"]
[SourceTitle "playchess.com"]
[Source "ChessBase"]
[SourceQuality "1"]
[TimeControl "40/5400+30:1800+30"]

1. Nf3 f5 {[%emt 0:01:22]} 2. g3 {[%emt 0:01:56]} Nf6 {[%emt 0:00:07]} 3. Bg2 {[%emt 0:00:09]} e6 {[%emt 0:00:07]} 4. O-O {[%emt 0:00:13]} d5 {[%emt 0:00:06]} 5. c4 {[%emt 0:00:09]} c6 {[%emt 0:00:07]} 6. d3 {[%emt 0:00:23]} dxc4 {[%emt 0:00:12]} 7. dxc4 {[%emt 0:00:05]} Qxd1 {[%emt 0:00:08]} 8. Rxd1 {[%emt 0:00:04]} Nbd7 {[%emt 0:00:25]} 9. Nc3 {[%emt 0:00:49]} Bc5 {[%emt 0:07:25]} 10. h3 {[%emt 0:31:46]} O-O {[%emt 0:01:15]} 11. Bf4 {[%emt 0:05:18]} Ne4 {[%emt 0:10:09]} 12. Nxe4 {[%emt 0:00:16]} fxe4 {[%emt 0:00:06]} 13. Nd2 {[%emt 0:01:41]} Bxf2+ {[%emt 0:02:31]} 14. Kxf2 {[%emt 0:01:27]} e5 {[%emt 0:00:17]} 15. e3 {[%emt 0:11:57]} Nc5 {[%emt 0:09:27]} 16. Nxe4 {[%emt 0:00:53]} Nxe4+ {[%emt 0:05:41]} 17. Bxe4 {[%emt 0:00:03]} g5 {[%emt 0:00:49]} 18. Rd6 {[%emt 0:03:42]} exf4 {[%emt 0:10:41]} 19. exf4 {[%emt 0:00:39]} gxf4 {[%emt 0:10:11]} 20. g4 {[%emt 0:00:14]} Re8 {[%emt 0:01:03]} 21. Re1 {[%emt 0:03:43]} Kg7 {[%emt 0:00:04]} 22. Bd3 {[%emt 0:01:18]} Rxe1 {[%emt 0:01:19]} 23. Kxe1 {[%emt 0:00:02]} h5 {[%emt 0:00:21]} 24. Rd8 {[%emt 0:00:51]} hxg4 {[%emt 0:01:12]} 25. hxg4 {[%emt 0:00:07]} b6 {[%emt 0:01:04]} 26. Bf5 {[%emt 0:00:05]} Bb7 {[%emt 0:00:05]} 27. Rd7+ {[%emt 0:00:01]} 1-0

[Event "EYCC Open-U18 2019"]
[Site "Bratislava"]
[Date "2019.08.10"]
[Round "9.22"]
[White "Leisch, Lukas"]
[Black "Brozyna, Mateusz"]
[Result "1-0"]
[ECO "A06"]
[WhiteElo "2327"]
[BlackElo "2258"]
[Annotator "NA"]
[PlyCount "145"]
[EventDate "2019.08.02"]
[EventType "swiss"]
[EventCountry "SVK"]
[SourceTitle "playchess.com"]
[Source "ChessBase"]
[SourceQuality "1"]
[TimeControl "40/5400+30:1800+30"]

1. Nf3 {[%emt 0:00:00]} d5 {[%emt 0:00:15]} 2. e3 {[%emt 0:00:41]} Nf6 {[%emt 0:00:08]} 3. c4 {[%emt 0:00:26]} c6 {[%emt 0:00:21]} 4. Nc3 {[%emt 0:00:06]} e6 {[%emt 0:00:20]} 5. b3 {[%emt 0:00:10]} Nbd7 {[%emt 0:00:17]} 6. Qc2 {[%emt 0:00:13]} Bd6 {[%emt 0:00:09]} 7. Bb2 {[%emt 0:00:06]} O-O {[%emt 0:00:08]} 8. Be2 {[%emt 0:00:16]} b6 {[%emt 0:05:05]} 9. Rg1 {[%emt 0:00:31]} Qe7 {[%emt 0:04:26]} 10. g4 {[%emt 0:00:28]} Ba3 {[%emt 0:06:15]} 11. g5 {[%emt 0:01:59]} Ne8 {[%emt 0:00:22]} 12. Bxa3 {[%emt 0:06:52]} Qxa3 {[%emt 0:00:19]} 13. Nd4 {[%emt 0:02:21]} Bb7 {[%emt 0:03:26]} 14. f4 {[%emt 0:06:03]} e5 {[%emt 0:11:17]} 15. fxe5 {[%emt 0:02:22]} Nxe5 {[%emt 0:01:07]} 16. cxd5 {[%emt 0:00:50]} cxd5 {[%emt 0:01:45]} 17. Qf5 {[%emt 0:03:44]} Qe7 {[%emt 0:05:59]} 18. O-O-O {[%emt 0:03:05]} Nd6 {[%emt 0:01:16]} 19. Qf6 {[%emt 0:08:55]} Qxf6 {[%emt 0:06:31]} 20. gxf6 {[%emt 0:00:06]} g6 {[%emt 0:00:07]} 21. d3 {[%emt 0:02:42]} Rfe8 {[%emt 0:03:23]} 22. Kd2 {[%emt 0:01:37]} Nd7 {[%emt 0:10:13]} 23. Rdf1 {[%emt 0:00:40]} Red8 {[%emt 0:01:11]} 24. Bg4 {[%emt 0:08:44]} Ne8 {[%emt 0:01:23]} 25. Bxd7 {[%emt 0:00:27]} Rxd7 {[%emt 0:00:07]} 26. Rf4 {[%emt 0:01:54]} Nc7 {[%emt 0:02:59]} 27. Rg3 {[%emt 0:03:38]} Re8 {[%emt 0:05:22]} 28. Rh3 {[%emt 0:04:44]} Ne6 {[%emt 0:02:11]} 29. Rfh4 {[%emt 0:02:55]} h5 {[%emt 0:11:49]} 30. Nce2 {[%emt 0:05:01]} Ng5 {[%emt 0:02:03]} 31. Rg3 {[%emt 0:00:11]} Nh7 {[%emt 0:00:19]} 32. Rf4 {[%emt 0:02:16]} Re5 {[%emt 0:04:37]} 33. h4 {[%emt 0:01:10]} Rd6 {[%emt 0:03:56]} 34. Rgf3 {[%emt 0:00:47]} a6 {[%emt 0:00:41]} 35. Rf1 {[%emt 0:01:00]} Re8 {[%emt 0:00:22]} 36. Ng3 {[%emt 0:03:35]} Bc8 {[%emt 0:01:24]} 37. Nge2 {[%emt 0:04:08]} Bg4 {[%emt 0:00:56]} 38. Nc3 {[%emt 0:00:33]} Nf8 {[%emt 0:01:06]} 39. Nc2 {[%emt 0:05:49]} Ne6 {[%emt 0:02:15]} 40. R4f2 {[%emt 0:00:00]} Rc8 {[%emt 0:00:00]} 41. Nb4 {[%emt 0:05:10]} d4 {[%emt 0:09:47]} 42. Ne4 {[%emt 0:07:37]} dxe3+ {[%emt 0:01:04]} 43. Kxe3 {[%emt 0:00:05]} Rd4 {[%emt 0:01:17]} 44. Nc2 {[%emt 0:02:20]} Rd5 {[%emt 0:01:05]} 45. d4 {[%emt 0:05:13]} a5 {[%emt 0:01:41]} 46. Rd2 {[%emt 0:02:03]} Bf5 {[%emt 0:02:52]} 47. Rfd1 {[%emt 0:02:47]} Re8 {[%emt 0:03:44]} 48. Nc3 {[%emt 0:03:35]} Rd6 {[%emt 0:07:36]} 49. d5 {[%emt 0:02:29]} Nc5+ {[%emt 0:00:47]} 50. Kd4 {[%emt 0:04:12]} Ne6+ {[%emt 0:00:22]} 51. Ke5 {[%emt 0:01:20]} Red8 {[%emt 0:03:47]} 52. Ne3 {[%emt 0:01:38]} Nf8 {[%emt 0:04:00]} 53. Nxf5 {[%emt 0:00:58]} gxf5 {[%emt 0:00:01]} 54. Kxf5 {[%emt 0:01:26]} Ng6 {[%emt 0:00:13]} 55. Kg5 {[%emt 0:02:34]} Re8 {[%emt 0:00:20]} 56. Re2 {[%emt 0:00:57]} Rxe2 {[%emt 0:01:41]} 57. Nxe2 {[%emt 0:00:05]} Nf8 {[%emt 0:00:09]} 58. Nc3 {[%emt 0:02:01]} Nh7+ {[%emt 0:00:20]} 59. Kxh5 {[%emt 0:00:11]} Nxf6+ {[%emt 0:00:04]} 60. Kg5 {[%emt 0:00:08]} Kg7 {[%emt 0:00:36]} 61. Kf5 {[%emt 0:00:50]} Nd7 {[%emt 0:00:14]} 62. Ne4 {[%emt 0:00:51]} Rh6 {[%emt 0:00:13]} 63. Kg4 {[%emt 0:01:44]} Rg6+ {[%emt 0:01:16]} 64. Kf4 {[%emt 0:00:51]} Rh6 {[%emt 0:00:25]} 65. Kg4 {[%emt 0:01:32]} Rg6+ {[%emt 0:00:02]} 66. Kf4 {[%emt 0:00:03]} Rh6 {[%emt 0:00:01]} 67. Rh1 {[%emt 0:00:40]} Rh5 {[%emt 0:02:25]} 68. d6 {[%emt 0:00:22]} Rd5 {[%emt 0:01:34]} 69. h5 {[%emt 0:00:04]} f5 {[%emt 0:00:12]} 70. h6+ {[%emt 0:00:40]} Kh8 {[%emt 0:00:02]} 71. Ng5 {[%emt 0:00:41]} Rd4+ {[%emt 0:00:23]} 72. Kxf5 {[%emt 0:00:41]} Rd5+ {[%emt 0:00:23]} 73. Ke4 1-0

[Event "EYCC Open-U18 2019"]
[Site "Bratislava"]
[Date "2019.08.10"]
[Round "9.23"]
[White "Iliaguev, Nisim"]
[Black "Santryan, Davit"]
[Result "1-0"]
[ECO "E67"]
[WhiteElo "2357"]
[BlackElo "2167"]
[Annotator "NA"]
[PlyCount "75"]
[EventDate "2019.08.02"]
[EventType "swiss"]
[EventCountry "SVK"]
[SourceTitle "playchess.com"]
[Source "ChessBase"]
[SourceQuality "1"]
[TimeControl "40/5400+30:1800+30"]

1. d4 {[%emt 0:00:00]} Nf6 {[%emt 0:00:00]} 2. c4 {[%emt 0:00:00]} g6 {[%emt 0:05:25]} 3. g3 {[%emt 0:00:00]} Bg7 {[%emt 0:00:07]} 4. Bg2 {[%emt 0:00:00]} O-O {[%emt 0:00:07]} 5. Nc3 {[%emt 0:00:13]} d6 {[%emt 0:00:09]} 6. Nf3 {[%emt 0:00:07]} Nbd7 {[%emt 0:02:44]} 7. O-O {[%emt 0:01:19]} e5 {[%emt 0:00:01]} 8. b3 {[%emt 0:01:06]} Re8 {[%emt 0:05:39]} 9. Bb2 {[%emt 0:00:27]} exd4 {[%emt 0:06:39]} 10. Nxd4 {[%emt 0:00:20]} a5 {[%emt 0:01:28]} 11. Qc2 {[%emt 0:02:40]} c6 {[%emt 0:01:09]} 12. Rad1 {[%emt 0:03:18]} Qc7 {[%emt 0:04:05]} 13. Ba3 {[%emt 0:02:12]} Nc5 {[%emt 0:01:52]} 14. Ndb5 {[%emt 0:08:17]} cxb5 {[%emt 0:10:31]} 15. Nxb5 {[%emt 0:00:02]} Qb8 {[%emt 0:18:34]} 16. Nxd6 {[%emt 0:00:07]} Re5 {[%emt 0:00:05]} 17. f4 {[%emt 0:01:10]} Rh5 {[%emt 0:04:14]} 18. f5 {[%emt 0:03:46]} Na6 {[%emt 0:07:26]} 19. e4 {[%emt 0:15:03]} Nb4 {[%emt 0:08:58]} 20. Qe2 {[%emt 0:00:51]} Qa7+ {[%emt 0:08:47]} 21. Kh1 {[%emt 0:00:16]} gxf5 {[%emt 0:02:38]} 22. exf5 {[%emt 0:00:48]} Bd7 {[%emt 0:00:59]} 23. Bb2 {[%emt 0:03:15]} Rh6 {[%emt 0:01:31]} 24. Qe7 {[%emt 0:07:45]} Be8 {[%emt 0:03:15]} 25. Rf4 {[%emt 0:14:21]} Nc6 {[%emt 0:02:42]} 26. Qe2 {[%emt 0:02:46]} Kf8 {[%emt 0:02:16]} 27. g4 {[%emt 0:02:57]} Rh4 {[%emt 0:00:37]} 28. Qe1 {[%emt 0:03:30]} Rxg4 {[%emt 0:00:51]} 29. Bxf6 {[%emt 0:01:24]} Rxg2 {[%emt 0:00:05]} 30. Kxg2 {[%emt 0:00:44]} Bxf6 {[%emt 0:00:01]} 31. Re4 {[%emt 0:00:48]} Be7 {[%emt 0:01:54]} 32. Nxe8 {[%emt 0:00:37]} Rxe8 {[%emt 0:00:39]} 33. f6 {[%emt 0:00:09]} Bxf6 {[%emt 0:00:06]} 34. Rxe8+ {[%emt 0:00:06]} Kg7 {[%emt 0:00:02]} 35. Qg3+ {[%emt 0:00:21]} Kh6 {[%emt 0:00:01]} 36. Qf4+ {[%emt 0:00:35]} Kg7 {[%emt 0:00:10]} 37. Qg4+ {[%emt 0:00:11]} Kh6 {[%emt 0:00:07]} 38. Rd3 {[%emt 0:00:42]} 1-0

[Event "EYCC Open-U18 2019"]
[Site "Bratislava"]
[Date "2019.08.10"]
[Round "9.24"]
[White "Hurdzan, Tomas"]
[Black "Oboladze, Luka"]
[Result "0-1"]
[ECO "B33"]
[WhiteElo "2231"]
[BlackElo "2323"]
[Annotator "NA"]
[PlyCount "76"]
[EventDate "2019.08.02"]
[EventType "swiss"]
[EventCountry "SVK"]
[SourceTitle "playchess.com"]
[Source "ChessBase"]
[SourceQuality "1"]
[TimeControl "40/5400+30:1800+30"]

1. e4 {[%emt 0:00:00]} c5 {[%emt 0:00:00]} 2. Nf3 {[%emt 0:00:00]} Nc6 {[%emt 0:00:00]} 3. d4 {[%emt 0:00:00]} cxd4 {[%emt 0:00:00]} 4. Nxd4 {[%emt 0:00:00]} Nf6 {[%emt 0:00:00]} 5. Nc3 {[%emt 0:00:05]} e5 {[%emt 0:00:00]} 6. Ndb5 {[%emt 0:00:23]} d6 {[%emt 0:00:00]} 7. Bg5 {[%emt 0:00:17]} a6 {[%emt 0:00:00]} 8. Na3 {[%emt 0:00:03]} b5 {[%emt 0:00:04]} 9. Nd5 {[%emt 0:00:26]} Be7 {[%emt 0:00:05]} 10. Bxf6 {[%emt 0:00:04]} Bxf6 {[%emt 0:00:04]} 11. c4 {[%emt 0:00:24]} b4 {[%emt 0:00:07]} 12. Nc2 {[%emt 0:00:05]} a5 {[%emt 0:00:03]} 13. g3 {[%emt 0:00:46]} Be6 {[%emt 0:05:36]} 14. Bg2 {[%emt 0:04:13]} O-O {[%emt 0:01:15]} 15. O-O {[%emt 0:01:29]} Rb8 {[%emt 0:03:56]} 16. Qd3 {[%emt 0:03:16]} Bg5 {[%emt 0:02:26]} 17. Rad1 {[%emt 0:02:02]} Qd7 {[%emt 0:09:11]} 18. b3 {[%emt 0:03:05]} Bd8 {[%emt 0:15:59]} 19. Kh1 {[%emt 0:01:24]} Qa7 {[%emt 0:02:00]} 20. f4 {[%emt 0:03:30]} f6 {[%emt 0:01:55]} 21. Rfe1 {[%emt 0:07:45]} Kh8 {[%emt 0:05:20]} 22. Qf1 {[%emt 0:01:05]} a4 {[%emt 0:06:12]} 23. Bh3 {[%emt 0:10:34]} Bxh3 {[%emt 0:06:50]} 24. Qxh3 {[%emt 0:00:06]} axb3 {[%emt 0:00:01]} 25. axb3 {[%emt 0:00:07]} Qa2 {[%emt 0:00:36]} 26. Qd7 {[%emt 0:08:35]} Qxc2 {[%emt 0:05:43]} 27. Qxc6 {[%emt 0:02:22]} exf4 {[%emt 0:04:32]} 28. Qxd6 {[%emt 0:02:12]} Ba5 {[%emt 0:01:38]} 29. Qxf4 {[%emt 0:02:25]} Qxb3 {[%emt 0:00:25]} 30. c5 {[%emt 0:04:12]} Rbc8 {[%emt 0:03:09]} 31. Rc1 {[%emt 0:03:04]} Qb2 {[%emt 0:04:24]} 32. Ne7 {[%emt 0:08:31]} Ra8 {[%emt 0:00:54]} 33. Ra1 {[%emt 0:07:49]} b3 {[%emt 0:01:42]} 34. Red1 {[%emt 0:02:49]} Qe2 {[%emt 0:02:07]} 35. Nd5 {[%emt 0:04:32]} Bd2 {[%emt 0:05:22]} 36. Qd6 {[%emt 0:05:46]} Qxe4+ {[%emt 0:01:15]} 37. Kg1 {[%emt 0:00:05]} Qd4+ {[%emt 0:00:55]} 38. Kg2 {[%emt 0:00:24]} Rad8 {[%emt 0:00:09]} 0-1

[Event "EYCC Open-U18 2019"]
[Site "Bratislava"]
[Date "2019.08.10"]
[Round "9.26"]
[White "Chylewski, Patryk"]
[Black "Kotau, Arseni"]
[Result "1-0"]
[ECO "E91"]
[WhiteElo "2376"]
[BlackElo "2227"]
[Annotator "NA"]
[PlyCount "75"]
[EventDate "2019.08.02"]
[EventType "swiss"]
[EventCountry "SVK"]
[SourceTitle "playchess.com"]
[Source "ChessBase"]
[SourceQuality "1"]
[TimeControl "40/5400+30:1800+30"]

1. d4 {[%emt 0:00:00]} Nf6 {[%emt 0:00:00]} 2. c4 {[%emt 0:00:00]} g6 {[%emt 0:00:00]} 3. Nc3 {[%emt 0:00:00]} Bg7 {[%emt 0:00:00]} 4. e4 {[%emt 0:00:00]} d6 {[%emt 0:00:01]} 5. Nf3 {[%emt 0:00:00]} O-O {[%emt 0:00:10]} 6. Be2 {[%emt 0:00:00]} Bg4 {[%emt 0:00:05]} 7. Be3 {[%emt 0:00:10]} Nfd7 {[%emt 0:01:59]} 8. O-O {[%emt 0:01:05]} Bxf3 {[%emt 0:01:48]} 9. Bxf3 {[%emt 0:00:06]} Nc6 {[%emt 0:00:11]} 10. d5 {[%emt 0:08:53]} Na5 {[%emt 0:01:12]} 11. Be2 {[%emt 0:00:37]} c5 {[%emt 0:09:17]} 12. Rc1 {[%emt 0:08:35]} a6 {[%emt 0:00:27]} 13. Qc2 {[%emt 0:03:56]} Rb8 {[%emt 0:00:41]} 14. b3 {[%emt 0:00:28]} Nf6 {[%emt 0:08:48]} 15. f4 {[%emt 0:04:14]} Qd7 {[%emt 0:14:39]} 16. h3 {[%emt 0:05:23]} b5 {[%emt 0:02:07]} 17. e5 {[%emt 0:01:25]} Ne8 {[%emt 0:01:03]} 18. cxb5 {[%emt 0:02:45]} axb5 {[%emt 0:02:55]} 19. e6 {[%emt 0:01:43]} fxe6 {[%emt 0:08:48]} 20. Bg4 {[%emt 0:01:12]} Nc7 {[%emt 0:00:34]} 21. dxe6 {[%emt 0:01:34]} Qc8 {[%emt 0:08:20]} 22. Rcd1 {[%emt 0:05:42]} Nc6 {[%emt 0:12:24]} 23. Ne4 {[%emt 0:02:54]} Nb4 {[%emt 0:01:56]} 24. Qf2 {[%emt 0:07:05]} Nbd5 {[%emt 0:02:00]} 25. Bc1 {[%emt 0:05:28]} Nf6 {[%emt 0:01:31]} 26. Nxf6+ {[%emt 0:01:51]} Bxf6 {[%emt 0:01:45]} 27. f5 {[%emt 0:01:18]} Nxe6 {[%emt 0:08:46]} 28. Qe1 {[%emt 0:04:44]} h5 {[%emt 0:08:32]} 29. Bf3 {[%emt 0:02:41]} Bd4+ {[%emt 0:00:46]} 30. Rxd4 {[%emt 0:02:50]} Nxd4 {[%emt 0:00:05]} 31. Bd5+ {[%emt 0:00:31]} e6 {[%emt 0:03:14]} 32. fxe6 {[%emt 0:01:09]} Rxf1+ {[%emt 0:00:15]} 33. Qxf1 {[%emt 0:00:04]} Nf5 {[%emt 0:00:48]} 34. g4 {[%emt 0:01:22]} c4 {[%emt 0:00:14]} 35. b4 {[%emt 0:00:51]} hxg4 {[%emt 0:00:51]} 36. hxg4 {[%emt 0:00:04]} Ng7 {[%emt 0:00:32]} 37. e7+ {[%emt 0:01:11]} Kh7 {[%emt 0:00:13]} 38. Qf4 {[%emt 0:00:14]} 1-0

[Event "EYCC Open-U18 2019"]
[Site "Bratislava"]
[Date "2019.08.10"]
[Round "9.27"]
[White "Brinovec, David"]
[Black "Kozak, Antoni"]
[Result "0-1"]
[ECO "D00"]
[WhiteElo "2205"]
[BlackElo "2365"]
[Annotator "NA"]
[PlyCount "72"]
[EventDate "2019.08.02"]
[EventType "swiss"]
[EventCountry "SVK"]
[SourceTitle "playchess.com"]
[Source "ChessBase"]
[SourceQuality "1"]
[TimeControl "40/5400+30:1800+30"]

1. d4 {[%emt 0:00:00]} d5 {[%emt 0:03:08]} 2. Bf4 {[%emt 0:00:29]} c5 {[%emt 0:00:09]} 3. e3 {[%emt 0:01:40]} Nc6 {[%emt 0:01:07]} 4. c3 {[%emt 0:01:06]} Nf6 {[%emt 0:03:56]} 5. Nd2 {[%emt 0:01:29]} cxd4 {[%emt 0:00:11]} 6. exd4 {[%emt 0:00:18]} Bf5 {[%emt 0:00:49]} 7. Be2 {[%emt 0:08:50]} e6 {[%emt 0:03:51]} 8. g4 {[%emt 0:02:12]} Bg6 {[%emt 0:00:15]} 9. h4 {[%emt 0:01:13]} h5 {[%emt 0:03:13]} 10. g5 {[%emt 0:00:37]} Ne4 {[%emt 0:00:20]} 11. Qb3 {[%emt 0:11:20]} Bd6 {[%emt 0:03:20]} 12. Nh3 {[%emt 0:14:36]} Qc7 {[%emt 0:05:31]} 13. Bxd6 {[%emt 0:01:43]} Qxd6 {[%emt 0:00:04]} 14. O-O-O {[%emt 0:12:20]} O-O {[%emt 0:03:51]} 15. Nxe4 {[%emt 0:02:34]} Bxe4 {[%emt 0:00:02]} 16. Rhg1 {[%emt 0:03:32]} g6 {[%emt 0:00:51]} 17. Rg3 {[%emt 0:09:53]} Rab8 {[%emt 0:05:13]} 18. Bd3 {[%emt 0:05:56]} Bxd3 {[%emt 0:01:31]} 19. Rdxd3 {[%emt 0:00:22]} b5 {[%emt 0:00:05]} 20. Kb1 {[%emt 0:11:16]} b4 {[%emt 0:00:53]} 21. Qd1 {[%emt 0:01:03]} Ne7 {[%emt 0:00:49]} 22. Rgf3 {[%emt 0:01:16]} Nf5 {[%emt 0:00:41]} 23. Nf4 {[%emt 0:01:12]} bxc3 {[%emt 0:00:34]} 24. Rxc3 {[%emt 0:01:06]} Rb4 {[%emt 0:00:04]} 25. Ne2 {[%emt 0:01:14]} Nxh4 {[%emt 0:01:36]} 26. Rh3 {[%emt 0:00:26]} Nf5 {[%emt 0:00:01]} 27. Qh1 {[%emt 0:02:40]} Rfb8 {[%emt 0:01:32]} 28. b3 {[%emt 0:00:10]} Nxd4 {[%emt 0:01:10]} 29. Nxd4 {[%emt 0:02:19]} Rxd4 {[%emt 0:00:03]} 30. Rxh5 {[%emt 0:01:37]} gxh5 {[%emt 0:00:08]} 31. Qxh5 {[%emt 0:00:06]} Qe5 {[%emt 0:00:58]} 32. Rh3 {[%emt 0:00:42]} Qe1+ {[%emt 0:00:30]} 33. Kb2 {[%emt 0:00:16]} Qd2+ {[%emt 0:00:04]} 34. Kb1 {[%emt 0:00:18]} Qe1+ {[%emt 0:00:12]} 35. Kb2 {[%emt 0:00:13]} Rd2+ {[%emt 0:00:03]} 36. Ka3 {[%emt 0:00:19]} Qc1+ {[%emt 0:00:04]} 0-1

[Event "EYCC Open-U18 2019"]
[Site "Bratislava"]
[Date "2019.08.10"]
[Round "9.28"]
[White "Storme, Isak"]
[Black "Veleshnja, Zino"]
[Result "1-0"]
[ECO "B90"]
[WhiteElo "2330"]
[BlackElo "2131"]
[Annotator "NA"]
[PlyCount "71"]
[EventDate "2019.08.02"]
[EventType "swiss"]
[EventCountry "SVK"]
[SourceTitle "playchess.com"]
[Source "ChessBase"]
[SourceQuality "1"]
[TimeControl "40/5400+30:1800+30"]

1. e4 {[%emt 0:00:00]} c5 {[%emt 0:00:00]} 2. Nf3 {[%emt 0:00:00]} d6 {[%emt 0:00:00]} 3. d4 {[%emt 0:00:00]} cxd4 {[%emt 0:00:00]} 4. Nxd4 {[%emt 0:00:00]} Nf6 {[%emt 0:00:00]} 5. Nc3 {[%emt 0:00:00]} a6 {[%emt 0:00:04]} 6. b3 {[%emt 0:00:00]} g6 {[%emt 0:05:09]} 7. Bb2 {[%emt 0:01:29]} Bg7 {[%emt 0:00:20]} 8. Qd2 {[%emt 0:00:15]} O-O {[%emt 0:01:11]} 9. O-O-O {[%emt 0:00:16]} b5 {[%emt 0:04:33]} 10. f3 {[%emt 0:12:25]} Bd7 {[%emt 0:07:49]} 11. h4 {[%emt 0:03:46]} h5 {[%emt 0:06:09]} 12. Kb1 {[%emt 0:06:29]} Qa5 {[%emt 0:27:42]} 13. a3 {[%emt 0:08:38]} Rc8 {[%emt 0:01:57]} 14. g4 {[%emt 0:02:02]} hxg4 {[%emt 0:08:43]} 15. fxg4 {[%emt 0:03:41]} Bxg4 {[%emt 0:01:27]} 16. Be2 {[%emt 0:01:50]} Bh5 {[%emt 0:05:20]} 17. Rdg1 {[%emt 0:05:55]} Nbd7 {[%emt 0:01:58]} 18. Nf5 {[%emt 0:13:08]} gxf5 {[%emt 0:07:47]} 19. Qg5 {[%emt 0:03:20]} Bg6 {[%emt 0:02:06]} 20. h5 {[%emt 0:00:38]} Nf8 {[%emt 0:04:58]} 21. hxg6 {[%emt 0:02:54]} fxg6 {[%emt 0:00:05]} 22. b4 {[%emt 0:16:28]} Qc7 {[%emt 0:00:16]} 23. Bd3 {[%emt 0:01:36]} e5 {[%emt 0:05:39]} 24. exf5 {[%emt 0:00:46]} d5 {[%emt 0:00:36]} 25. fxg6 {[%emt 0:01:32]} Ne6 {[%emt 0:01:30]} 26. Qh4 {[%emt 0:03:19]} Nd4 {[%emt 0:01:13]} 27. Rf1 {[%emt 0:03:00]} Qd6 {[%emt 0:00:55]} 28. Rxf6 {[%emt 0:02:31]} Qxf6 {[%emt 0:01:24]} 29. Qh7+ {[%emt 0:00:07]} Kf8 {[%emt 0:00:01]} 30. Nxd5 {[%emt 0:00:21]} Qf2 {[%emt 0:01:29]} 31. Rf1 {[%emt 0:01:37]} Rxc2 {[%emt 0:00:47]} 32. Bxd4 {[%emt 0:00:59]} exd4 {[%emt 0:00:50]} 33. Rxf2+ {[%emt 0:00:06]} Rxf2 {[%emt 0:00:01]} 34. Nc7 {[%emt 0:00:10]} Ra7 {[%emt 0:02:13]} 35. Ne6+ {[%emt 0:00:12]} Ke8 {[%emt 0:00:08]} 36. Nxg7+ {[%emt 0:00:06]} 1-0

[Event "EYCC Open-U18 2019"]
[Site "Bratislava"]
[Date "2019.08.10"]
[Round "9.29"]
[White "Papp, Levente"]
[Black "Pektas, Yigit"]
[Result "1-0"]
[ECO "A11"]
[WhiteElo "2362"]
[BlackElo "2111"]
[Annotator "NA"]
[PlyCount "37"]
[EventDate "2019.08.02"]
[EventType "swiss"]
[EventCountry "SVK"]
[SourceTitle "playchess.com"]
[Source "ChessBase"]
[SourceQuality "1"]
[TimeControl "40/5400+30:1800+30"]

1. c4 {[%emt 0:00:00]} c6 {[%emt 0:00:00]} 2. Nc3 {[%emt 0:00:25]} d5 {[%emt 0:00:00]} 3. cxd5 {[%emt 0:00:06]} cxd5 {[%emt 0:00:00]} 4. d4 {[%emt 0:00:05]} Nf6 {[%emt 0:00:00]} 5. Bf4 {[%emt 0:00:07]} Nc6 {[%emt 0:00:02]} 6. e3 {[%emt 0:00:12]} a6 {[%emt 0:00:27]} 7. Rc1 {[%emt 0:02:04]} Bf5 {[%emt 0:01:29]} 8. Bd3 {[%emt 0:01:22]} Bxd3 {[%emt 0:00:13]} 9. Qxd3 {[%emt 0:00:05]} e6 {[%emt 0:00:03]} 10. Nf3 {[%emt 0:00:20]} Be7 {[%emt 0:01:06]} 11. O-O {[%emt 0:00:06]} O-O {[%emt 0:01:31]} 12. Bg5 {[%emt 0:10:59]} Rc8 {[%emt 0:05:05]} 13. Bxf6 {[%emt 0:03:11]} Bxf6 {[%emt 0:00:06]} 14. Na4 {[%emt 0:03:23]} Qd6 {[%emt 0:13:35]} 15. Nc5 {[%emt 0:05:10]} Rc7 {[%emt 0:00:14]} 16. Qb3 {[%emt 0:05:34]} Na5 {[%emt 0:10:26]} 17. Qb4 {[%emt 0:01:45]} Nc4 {[%emt 0:03:18]} 18. b3 {[%emt 0:04:37]} Qb6 {[%emt 0:02:12]} 19. Rxc4 {[%emt 0:01:43]} 1-0

[Event "EYCC Open-U18 2019"]
[Site "Bratislava"]
[Date "2019.08.10"]
[Round "9.30"]
[White "Garanin, Aleksei"]
[Black "Stevanic, David"]
[Result "0-1"]
[ECO "D30"]
[WhiteElo "2192"]
[BlackElo "2306"]
[Annotator "NA"]
[PlyCount "72"]
[EventDate "2019.08.02"]
[EventType "swiss"]
[EventCountry "SVK"]
[SourceTitle "playchess.com"]
[Source "ChessBase"]
[SourceQuality "1"]
[TimeControl "40/5400+30:1800+30"]

1. d4 {[%emt 0:00:00]} d5 {[%emt 0:00:00]} 2. c4 {[%emt 0:00:00]} e6 {[%emt 0:00:00]} 3. Nf3 {[%emt 0:00:00]} c5 {[%emt 0:00:00]} 4. g3 {[%emt 0:00:05]} dxc4 {[%emt 0:06:43]} 5. Bg2 {[%emt 0:01:28]} Nc6 {[%emt 0:02:59]} 6. O-O {[%emt 0:10:47]} cxd4 {[%emt 0:02:36]} 7. Qa4 {[%emt 0:00:18]} Bd7 {[%emt 0:05:23]} 8. Qxc4 {[%emt 0:00:01]} e5 {[%emt 0:01:23]} 9. Ng5 {[%emt 0:07:11]} Qe7 {[%emt 0:04:19]} 10. Bd5 {[%emt 0:02:15]} Nh6 {[%emt 0:01:04]} 11. f4 {[%emt 0:09:34]} f6 {[%emt 0:03:29]} 12. Ne4 {[%emt 0:03:48]} Nf7 {[%emt 0:07:50]} 13. Na3 {[%emt 0:01:31]} a6 {[%emt 0:04:05]} 14. e3 {[%emt 0:05:31]} Nd6 {[%emt 0:07:23]} 15. Nxd6+ {[%emt 0:00:22]} Qxd6 {[%emt 0:00:09]} 16. exd4 {[%emt 0:04:48]} exd4 {[%emt 0:02:48]} 17. Re1+ {[%emt 0:01:35]} Be7 {[%emt 0:05:59]} 18. Bd2 {[%emt 0:04:09]} O-O-O {[%emt 0:05:27]} 19. f5 {[%emt 0:10:04]} b5 {[%emt 0:16:01]} 20. Nxb5 {[%emt 0:04:05]} axb5 {[%emt 0:02:12]} 21. Qxb5 {[%emt 0:00:02]} Qb8 {[%emt 0:09:47]} 22. Qc4 {[%emt 0:08:31]} Qc7 {[%emt 0:05:58]} 23. Rac1 {[%emt 0:00:17]} Bd6 {[%emt 0:01:13]} 24. Bxc6 {[%emt 0:01:18]} Bxc6 {[%emt 0:00:04]} 25. Qxc6 {[%emt 0:00:19]} Qxc6 {[%emt 0:00:09]} 26. Rxc6+ {[%emt 0:00:01]} Kb7 {[%emt 0:00:24]} 27. Rec1 {[%emt 0:00:40]} Rhe8 {[%emt 0:00:55]} 28. Ba5 {[%emt 0:09:24]} Rd7 {[%emt 0:00:04]} 29. Rb6+ {[%emt 0:01:04]} Ka7 {[%emt 0:01:47]} 30. Rb3 {[%emt 0:00:31]} d3 {[%emt 0:01:51]} 31. Bb6+ {[%emt 0:00:22]} Ka6 {[%emt 0:01:24]} 32. Rc6 {[%emt 0:03:53]} Bb4 {[%emt 0:01:44]} 33. Be3+ {[%emt 0:08:02]} Ka5 {[%emt 0:00:17]} 34. a3 {[%emt 0:01:58]} Rxe3 {[%emt 0:00:20]} 35. axb4+ {[%emt 0:00:15]} Kb5 {[%emt 0:00:54]} 36. Rc5+ {[%emt 0:00:59]} Kb6 {[%emt 0:00:07]} 0-1